[Event "Masters Tournament (MTO)"]
[Site "Biel, Switzerland"]
[Date "2026.07.15"]
[Round "3.30"]
[White "Fogo Esquivel, Levi Kalani Alexander"]
[Black "Tan, Jimmy"]
[Result "1/2-1/2"]
[TimeControl "100+30+30sec/move"]
[WhiteTitle "-"]
[BlackTitle "-"]
[WhiteFideId "5183189"]
[BlackFideId "129057499"]
[WhiteElo "2125"]
[BlackElo "1953"]

1. e4 {[%clk 01:32:23]} {[%emt 00:08:36]} c6 {[%clk 01:40:55]} {[%emt
00:00:06]} 2. Nc3 {[%clk 01:32:47]} {[%emt 00:00:06]} d5 {[%clk 01:41:20]}
{[%emt 00:00:05]} 3. Nf3 {[%clk 01:33:13]} {[%emt 00:00:03]} dxe4 {[%clk
01:41:44]} {[%emt 00:00:06]} 4. Nxe4 {[%clk 01:33:36]} {[%emt 00:00:06]} Nf6
{[%clk 01:41:29]} {[%emt 00:00:46]} 5. Qe2 {[%clk 01:32:29]} {[%emt 00:01:38]}
Nxe4 {[%clk 01:41:40]} {[%emt 00:00:19]} 6. Qxe4 {[%clk 01:32:39]} {[%emt
00:00:20]} Be6 {[%clk 01:41:56]} {[%emt 00:00:14]} 7. b3 {[%clk 01:33:00]}
{[%emt 00:00:08]} Nd7 {[%clk 01:42:21]} {[%emt 00:00:05]} 8. Bb2 {[%clk
01:32:42]} {[%emt 00:00:47]} Nf6 {[%clk 01:40:03]} {[%emt 00:02:48]} 9. Qe3
{[%clk 01:32:15]} {[%emt 00:00:58]} Nd5 {[%clk 01:35:34]} {[%emt 00:04:59]} 10.
Qe4 {[%clk 01:18:53]} {[%emt 00:13:52]} Nf6 {[%clk 01:34:00]} {[%emt 00:02:05]}
11. Qe3 {[%clk 01:16:21]} {[%emt 00:03:01]} Nd5 {[%clk 01:34:22]} {[%emt
00:00:09]} 12. Qd3 {[%clk 01:07:28]} {[%emt 00:09:23]} Nb4 {[%clk 01:22:36]}
{[%emt 00:12:16]} 13. Qe4 {[%clk 01:07:11]} {[%emt 00:00:46]} a5 {[%clk
01:18:07]} {[%emt 00:05:00]} 14. c4 {[%clk 00:58:52]} {[%emt 00:08:49]} Bd7
{[%clk 01:07:27]} {[%emt 00:11:09]} 15. a3 {[%clk 00:57:41]} {[%emt 00:01:41]}
Na6 {[%clk 01:07:48]} {[%emt 00:00:09]} 16. Be2 {[%clk 00:57:19]} {[%emt
00:00:52]} Qb6 {[%clk 01:04:15]} {[%emt 00:04:03]} 17. Bd4 {[%clk 00:53:20]}
{[%emt 00:04:29]} c5 {[%clk 00:59:05]} {[%emt 00:05:41]} 18. Bc3 {[%clk
00:53:25]} {[%emt 00:00:24]} Bc6 {[%clk 00:47:49]} {[%emt 00:11:47]} 19. Qc2
{[%clk 00:52:29]} {[%emt 00:01:26]} f6 {[%clk 00:45:20]} {[%emt 00:02:59]} 20.
d4 {[%clk 00:51:41]} {[%emt 00:01:18]} cxd4 {[%clk 00:44:54]} {[%emt 00:00:55]}
21. Nxd4 {[%clk 00:50:20]} {[%emt 00:01:51]} O-O-O {[%clk 00:39:47]} {[%emt
00:05:37]} 22. Nxc6 {[%clk 00:49:46]} {[%emt 00:01:04]} Qxc6 {[%clk 00:39:55]}
{[%emt 00:00:22]} 23. O-O {[%clk 00:49:59]} {[%emt 00:00:17]} Nc7 {[%clk
00:25:52]} {[%emt 00:14:33]} 24. b4 {[%clk 00:49:19]} {[%emt 00:01:11]} e5
{[%clk 00:25:08]} {[%emt 00:01:14]} 25. Rfd1 {[%clk 00:46:38]} {[%emt
00:03:10]} Be7 {[%clk 00:24:54]} {[%emt 00:00:44]} 26. Rxd8+ {[%clk 00:46:37]}
{[%emt 00:00:31]} Rxd8 {[%clk 00:25:14]} {[%emt 00:00:10]} 27. Qxh7 {[%clk
00:46:50]} {[%emt 00:00:16]} Ne6 {[%clk 00:21:37]} {[%emt 00:04:08]} 28. Rc1
{[%clk 00:46:39]} {[%emt 00:00:40]} Kb8 {[%clk 00:20:53]} {[%emt 00:01:15]} 29.
Bf3 {[%clk 00:45:41]} {[%emt 00:01:28]} Qa4 {[%clk 00:19:11]} {[%emt 00:02:13]}
30. Qe4 {[%clk 00:45:01]} {[%emt 00:01:08]} Rd7 {[%clk 00:18:04]} {[%emt
00:01:38]} 31. Qe3 {[%clk 00:45:02]} {[%emt 00:00:28]} Nd4 {[%clk 00:15:30]}
{[%emt 00:03:05]} 32. Bd1 {[%clk 00:43:59]} {[%emt 00:01:32]} Qc6 {[%clk
00:15:50]} {[%emt 00:00:11]} 33. c5 {[%clk 00:44:14]} {[%emt 00:00:16]} Bd8
{[%clk 00:13:56]} {[%emt 00:02:23]} 34. Bg4 {[%clk 00:44:01]} {[%emt 00:00:42]}
Rd5 {[%clk 00:11:01]} {[%emt 00:03:27]} 35. h3 {[%clk 00:41:46]} {[%emt
00:02:44]} f5 {[%clk 00:09:39]} {[%emt 00:01:53]} 36. Bh5 {[%clk 00:41:14]}
{[%emt 00:01:01]} g6 {[%clk 00:08:01]} {[%emt 00:02:08]} 37. Be2 {[%clk
00:41:00]} {[%emt 00:00:44]} Bg5 {[%clk 00:07:05]} {[%emt 00:01:27]} 38. Qxg5
{[%clk 00:40:34]} {[%emt 00:00:56]} Nxe2+ {[%clk 00:07:33]} {[%emt 00:00:02]}
39. Kh2 {[%clk 00:41:03]} Nxc1 {[%clk 00:07:51]} {[%emt 00:00:12]} 40. Qxc1
{[%clk 00:41:20]} {[%emt 00:00:13]} f4 {[%emt 00:05:51]} 1/2-1/2

[Event "Masters Tournament (MTO)"]
[Site "Biel, Switzerland"]
[Date "2026.07.15"]
[Round "3.31"]
[White "Corbat, Philippe"]
[Black "Xu, Chang(Cq)"]
[Result "0-1"]
[TimeControl "100+30+30sec/move"]
[WhiteTitle "-"]
[BlackTitle "-"]
[WhiteFideId "1304496"]
[BlackFideId "8641757"]
[WhiteElo "1893"]
[BlackElo "2125"]

1. e4 {[%clk 01:40:54]} {[%emt 00:00:05]} c5 {[%clk 01:40:49]} {[%emt
00:00:14]} 2. a3 {[%clk 01:41:12]} {[%emt 00:00:10]} g6 {[%clk 01:40:20]}
{[%emt 00:00:58]} 3. h4 {[%clk 01:41:28]} {[%emt 00:00:14]} Nf6 {[%clk
01:40:15]} {[%emt 00:00:35]} 4. Nc3 {[%clk 01:41:31]} {[%emt 00:00:26]} Nc6
{[%clk 01:39:57]} {[%emt 00:00:49]} 5. Nd5 {[%clk 01:39:42]} {[%emt 00:02:19]}
Nxe4 {[%clk 01:36:28]} {[%emt 00:03:59]} 6. Qe2 {[%clk 01:39:28]} {[%emt
00:00:45]} f5 {[%clk 01:36:40]} {[%emt 00:00:17]} 7. d3 {[%clk 01:39:07]}
{[%emt 00:00:52]} Nd4 {[%clk 01:35:43]} {[%emt 00:01:26]} 8. Qd1 {[%clk
01:39:18]} {[%emt 00:00:19]} Nf6 {[%clk 01:35:53]} {[%emt 00:00:20]} 9. Nxf6+
{[%clk 01:39:18]} {[%emt 00:00:30]} exf6 {[%clk 01:36:15]} {[%emt 00:00:08]} 10.
c3 {[%clk 01:38:26]} {[%emt 00:01:22]} Nc6 {[%clk 01:34:35]} {[%emt 00:02:10]}
11. Nf3 {[%clk 01:33:16]} {[%emt 00:05:41]} d5 {[%clk 01:33:27]} {[%emt
00:01:39]} 12. d4 {[%clk 01:31:22]} {[%emt 00:02:23]} c4 {[%clk 01:32:04]}
{[%emt 00:01:53]} 13. b4 {[%clk 01:21:23]} {[%emt 00:10:29]} Bd6 {[%clk
01:31:33]} {[%emt 00:00:59]} 14. Bh6 {[%clk 01:16:42]} {[%emt 00:05:12]} Kf7
{[%clk 01:31:27]} {[%emt 00:00:36]} 15. Qd2 {[%clk 01:15:02]} {[%emt 00:02:11]}
Bd7 {[%clk 01:24:01]} {[%emt 00:07:56]} 16. Bf4 {[%clk 01:07:48]} {[%emt
00:07:43]} Qc7 {[%clk 01:23:16]} {[%emt 00:01:15]} 17. Bxd6 {[%clk 01:08:12]}
{[%emt 00:00:07]} Qxd6 {[%clk 01:23:38]} {[%emt 00:00:07]} 18. Qh6 {[%clk
01:03:26]} {[%emt 00:05:16]} Rae8+ {[%clk 01:20:29]} {[%emt 00:03:39]} 19. Kd2
{[%clk 00:57:42]} {[%emt 00:06:14]} a5 {[%clk 01:17:24]} {[%emt 00:03:35]} 20.
h5 {[%clk 00:48:08]} {[%emt 00:10:04]} Qb8 {[%clk 01:12:44]} {[%emt 00:05:11]}
21. Re1 {[%clk 00:39:12]} {[%emt 00:09:25]} Rxe1 {[%clk 01:11:44]} {[%emt
00:01:30]} 22. Kxe1 {[%clk 00:37:58]} {[%emt 00:01:45]} g5 {[%clk 01:11:33]}
{[%emt 00:00:40]} 23. Nxg5+ {[%clk 00:34:13]} {[%emt 00:04:15]} fxg5 {[%clk
01:11:02]} {[%emt 00:01:01]} 24. Qxg5 {[%clk 00:34:35]} {[%emt 00:00:08]} axb4
{[%clk 01:11:13]} {[%emt 00:00:20]} 25. axb4 {[%clk 00:32:37]} {[%emt
00:02:28]} Qa8 {[%clk 01:11:09]} {[%emt 00:00:33]} 26. Rh3 {[%clk 00:31:55]}
{[%emt 00:01:12]} Qa1+ {[%clk 01:11:11]} {[%emt 00:00:29]} 27. Ke2 {[%clk
00:31:48]} {[%emt 00:00:37]} Qb2+ {[%clk 01:11:21]} {[%emt 00:00:20]} 28. Ke1
{[%clk 00:31:41]} {[%emt 00:00:37]} Re8+ {[%clk 01:11:28]} {[%emt 00:00:23]} 29.
Re3 {[%clk 00:31:31]} {[%emt 00:00:40]} Qxc3+ {[%clk 01:11:48]} {[%emt
00:00:10]} 0-1

[Event "Masters Tournament (MTO)"]
[Site "Biel, Switzerland"]
[Date "2026.07.15"]
[Round "3.32"]
[White "Angst, Oliver"]
[Black "Fattori Dittmar, Luca"]
[Result "1-0"]
[TimeControl "100+30+30sec/move"]
[WhiteTitle "-"]
[BlackTitle "-"]
[WhiteFideId "1334069"]
[BlackFideId "34678883"]
[WhiteElo "2121"]
[BlackElo "1840"]

1. e4 {[%clk 01:40:34]} {[%emt 00:00:24]} c5 {[%clk 01:40:04]} {[%emt
00:00:57]} 2. Nf3 {[%clk 01:40:07]} {[%emt 00:00:57]} Nc6 {[%clk 01:40:29]}
{[%emt 00:00:06]} 3. d4 {[%clk 01:40:30]} {[%emt 00:00:07]} cxd4 {[%clk
01:40:52]} {[%emt 00:00:07]} 4. Nxd4 {[%clk 01:40:53]} {[%emt 00:00:06]} g6
{[%clk 01:41:01]} {[%emt 00:00:22]} 5. c4 {[%clk 01:27:32]} {[%emt 00:13:50]}
Nf6 {[%clk 01:41:17]} {[%emt 00:00:14]} 6. Nc3 {[%clk 01:27:55]} {[%emt
00:00:06]} d6 {[%clk 01:41:44]} {[%emt 00:00:04]} 7. Be2 {[%clk 01:27:42]}
{[%emt 00:00:42]} Nxd4 {[%clk 01:42:07]} {[%emt 00:00:08]} 8. Qxd4 {[%clk
01:28:02]} {[%emt 00:00:09]} Bg7 {[%clk 01:42:27]} {[%emt 00:00:10]} 9. Be3
{[%clk 01:26:30]} {[%emt 00:02:03]} O-O {[%clk 01:42:50]} {[%emt 00:00:07]} 10.
Qd2 {[%clk 01:26:43]} {[%emt 00:00:17]} a5 {[%clk 01:43:09]} {[%emt 00:00:12]}
11. f3 {[%clk 01:24:58]} {[%emt 00:02:14]} a4 {[%clk 01:43:24]} {[%emt
00:00:16]} 12. h4 {[%clk 01:08:25]} {[%emt 00:17:02]} Qa5 {[%clk 01:40:22]}
{[%emt 00:03:33]} 13. Nb5 {[%clk 00:57:40]} {[%emt 00:11:14]} Qxd2+ {[%clk
01:38:25]} {[%emt 00:02:26]} 14. Kxd2 {[%clk 00:55:41]} {[%emt 00:02:30]} Bd7
{[%clk 01:38:21]} {[%emt 00:00:35]} 15. Nc3 {[%clk 00:54:28]} {[%emt 00:01:43]}
Rfc8 {[%clk 01:36:11]} {[%emt 00:02:40]} 16. Rhc1 {[%clk 00:40:40]} {[%emt
00:14:17]} Be6 {[%clk 01:33:06]} {[%emt 00:03:35]} 17. Nb5 {[%clk 00:35:30]}
{[%emt 00:05:40]} Nd7 {[%clk 01:32:35]} {[%emt 00:01:01]} 18. Bd4 {[%clk
00:32:59]} {[%emt 00:03:01]} Ne5 {[%clk 01:30:18]} {[%emt 00:02:47]} 19. b3
{[%clk 00:26:59]} {[%emt 00:06:30]} Bd7 {[%clk 01:26:57]} {[%emt 00:03:52]} 20.
Ke3 {[%clk 00:25:17]} {[%emt 00:02:11]} Bh6+ {[%clk 01:23:13]} {[%emt
00:04:13]} 21. f4 {[%clk 00:25:25]} {[%emt 00:00:23]} Ng4+ {[%clk 01:23:37]}
{[%emt 00:00:06]} 22. Bxg4 {[%clk 00:23:33]} {[%emt 00:02:22]} Bxg4 {[%clk
01:23:55]} {[%emt 00:00:13]} 23. g3 {[%clk 00:14:44]} {[%emt 00:09:19]} Bd7
{[%clk 01:24:16]} {[%emt 00:00:08]} 24. Kf3 {[%clk 00:12:13]} {[%emt 00:03:01]}
axb3 {[%clk 01:20:30]} {[%emt 00:04:16]} 25. axb3 {[%clk 00:12:15]} {[%emt
00:00:28]} Rxa1 {[%clk 01:20:57]} {[%emt 00:00:03]} 26. Rxa1 {[%clk 00:12:34]}
{[%emt 00:00:11]} Bxb5 {[%clk 01:21:23]} {[%emt 00:00:03]} 27. cxb5 {[%clk
00:12:54]} {[%emt 00:00:10]} Bg7 {[%clk 01:21:33]} {[%emt 00:00:21]} 28. Ke3
{[%clk 00:08:02]} {[%emt 00:05:22]} Bxd4+ {[%clk 01:21:00]} {[%emt 00:01:03]}
29. Kxd4 {[%clk 00:08:26]} {[%emt 00:00:05]} Rc5 {[%clk 01:21:28]} {[%emt
00:00:03]} 30. b4 {[%clk 00:06:59]} {[%emt 00:01:58]} Rxb5 {[%clk 01:21:37]}
{[%emt 00:00:20]} 31. Kc4 {[%clk 00:07:24]} {[%emt 00:00:05]} Rb6 {[%clk
01:20:37]} {[%emt 00:01:31]} 32. b5 {[%clk 00:07:49]} {[%emt 00:00:05]} e6
{[%clk 01:20:06]} {[%emt 00:01:00]} 33. Kb4 {[%clk 00:07:22]} {[%emt 00:00:57]}
d5 {[%clk 01:18:24]} {[%emt 00:02:12]} 34. e5 {[%clk 00:05:35]} {[%emt
00:02:18]} f6 {[%clk 01:18:23]} {[%emt 00:00:30]} 35. Kc5 {[%clk 00:05:55]}
{[%emt 00:00:09]} Rxb5+ {[%clk 01:18:48]} {[%emt 00:00:06]} 36. Kxb5 {[%clk
00:06:20]} {[%emt 00:00:05]} fxe5 {[%clk 01:19:12]} {[%emt 00:00:06]} 37. fxe5
{[%clk 00:06:39]} {[%emt 00:00:11]} Kg7 {[%clk 01:19:35]} {[%emt 00:00:07]} 38.
Rf1 {[%clk 00:07:03]} {[%emt 00:00:06]} Kh6 {[%clk 01:19:58]} {[%emt 00:00:08]}
39. g4 {[%clk 00:07:14]} {[%emt 00:00:18]} g5 {[%clk 01:20:16]} {[%emt
00:00:10]} 40. Rf6+ {[%clk 00:07:21]} {[%emt 00:00:24]} 1-0

[Event "Masters Tournament (MTO)"]
[Site "Biel, Switzerland"]
[Date "2026.07.15"]
[Round "3.33"]
[White "Erne, Raphael"]
[Black "Von Burg, Carl Alexander"]
[Result "1/2-1/2"]
[TimeControl "100+30+30sec/move"]
[WhiteTitle "-"]
[BlackTitle "-"]
[WhiteFideId "1341928"]
[BlackFideId "1352458"]
[WhiteElo "2166"]
[BlackElo "1947"]

1. c4 {[%clk 01:40:52]} {[%emt 00:00:07]} c6 {[%clk 01:40:37]} {[%emt
00:00:23]} 2. g3 {[%clk 01:41:06]} {[%emt 00:00:17]} d5 {[%clk 01:41:00]}
{[%emt 00:00:07]} 3. Nf3 {[%clk 01:41:19]} {[%emt 00:00:17]} Nf6 {[%clk
01:41:22]} {[%emt 00:00:08]} 4. Bg2 {[%clk 01:41:24]} {[%emt 00:00:24]} dxc4
{[%clk 01:41:21]} {[%emt 00:00:31]} 5. O-O {[%clk 01:40:40]} {[%emt 00:01:14]}
Nbd7 {[%clk 01:41:24]} {[%emt 00:00:27]} 6. Qc2 {[%clk 01:34:50]} {[%emt
00:06:20]} Nb6 {[%clk 01:41:38]} {[%emt 00:00:16]} 7. a4 {[%clk 01:34:30]}
{[%emt 00:00:51]} a5 {[%clk 01:41:44]} {[%emt 00:00:23]} 8. Na3 {[%clk
01:34:30]} {[%emt 00:00:30]} g6 {[%clk 01:40:04]} {[%emt 00:02:10]} 9. Nxc4
{[%clk 01:34:07]} {[%emt 00:00:53]} Nxc4 {[%clk 01:40:19]} {[%emt 00:00:15]} 10.
Qxc4 {[%clk 01:34:30]} {[%emt 00:00:07]} Bg7 {[%clk 01:40:26]} {[%emt
00:00:23]} 11. d3 {[%clk 01:34:26]} {[%emt 00:00:34]} O-O {[%clk 01:40:42]}
{[%emt 00:00:14]} 12. Bd2 {[%clk 01:28:58]} {[%emt 00:05:58]} Be6 {[%clk
01:37:59]} {[%emt 00:03:13]} 13. Qc2 {[%clk 01:27:40]} {[%emt 00:01:47]} Nd5
{[%clk 01:36:59]} {[%emt 00:01:30]} 14. Bc3 {[%clk 01:24:14]} {[%emt 00:03:57]}
Nb4 {[%clk 01:34:08]} {[%emt 00:03:21]} 15. Qd2 {[%clk 01:22:56]} {[%emt
00:01:48]} Qb6 {[%clk 01:32:58]} {[%emt 00:01:39]} 16. Bxg7 {[%clk 01:17:27]}
{[%emt 00:05:59]} Kxg7 {[%clk 01:33:25]} {[%emt 00:00:04]} 17. Ng5 {[%clk
01:17:24]} {[%emt 00:00:33]} Bd7 {[%clk 01:21:37]} {[%emt 00:12:19]} 18. Qc3+
{[%clk 01:11:32]} {[%emt 00:06:21]} Kg8 {[%clk 01:18:06]} {[%emt 00:04:01]} 19.
Ne4 {[%clk 01:05:57]} {[%emt 00:06:05]} Rad8 {[%clk 01:12:38]} {[%emt
00:05:58]} 20. Rfd1 {[%clk 00:54:09]} {[%emt 00:12:18]} Bg4 {[%clk 01:07:57]}
{[%emt 00:05:11]} 21. Qd2 {[%clk 00:46:27]} {[%emt 00:08:12]} Qd4 {[%clk
01:06:42]} {[%emt 00:01:43]} 22. Rac1 {[%clk 00:43:53]} {[%emt 00:03:06]} b6
{[%clk 00:56:09]} {[%emt 00:11:01]} 23. Rc4 {[%clk 00:31:09]} {[%emt 00:13:15]}
Qg7 {[%clk 00:49:05]} {[%emt 00:07:35]} 24. Nf6+ {[%clk 00:25:05]} {[%emt
00:06:34]} Qxf6 {[%clk 00:49:02]} {[%emt 00:00:32]} 25. Rxg4 {[%clk 00:25:31]}
{[%emt 00:00:05]} Rd6 {[%clk 00:39:57]} {[%emt 00:09:34]} 26. Rc4 {[%clk
00:21:07]} {[%emt 00:04:54]} c5 {[%clk 00:38:43]} {[%emt 00:01:39]} 1/2-1/2